fUSD/lending_fUSD_20250513
["ID","MTS","AMOUNT","RATE_DAILY","PERIOD"]
[360927235,1747151447835,-500.0,0.00010973,2]
[360927236,1747151447845,-500.0,0.00010973,2]
[360927237,1747151447854,-500.0,0.00010973,2]
[360927238,1747151447863,-500.0,0.00010973,2]
[360927239,1747151447872,-500.0,0.00010973,2]
[360927240,1747151447881,-366.53435314,0.00010973,2]
[360927241,1747151447891,-500.0,0.00010973,2]
[360927242,1747151447900,-501.72453917,0.00010973,2]
[360927243,1747151447910,-515.31430227,0.00010973,2]
[360927244,1747151447919,-500.0,0.00010973,2]
[360927245,1747151447928,-500.0,0.00010973,2]
[360927246,1747151447938,-500.0,0.00010973,2]
[360927247,1747151447947,-500.35340861,0.00010973,2]
[360927248,1747151447956,-227.10295482,0.0001099,2]
[360927249,1747151447965,-4280.411,0.00010994,2]
[360927250,1747151447975,-178.342,0.00010994,2]
[360927251,1747151447984,-500.0,0.00010997,2]
[360927252,1747151447993,-500.0,0.00010997,2]
[360927253,1747151448003,-500.0,0.00010997,2]
[360927254,1747151448012,-500.0,0.00010997,2]
[360927255,1747151448021,-6693.6919944,0.00010998,2]
[360927256,1747151448031,-4476.0974861,0.00010998,2]
[360927257,1747151448041,-60788.6236655,0.00010998,2]
[360927258,1747151448050,-1246.017376,0.00010998,2]
[360927259,1747151448059,-56660.7245992,0.00010998,2]
[360927260,1747151448068,-500.0,0.00010998,2]
[360927261,1747151448077,-402.68788391,0.00010999,2]
[360927262,1747151448087,-400.0,0.00010999,2]
[360927263,1747151448096,-400.0,0.00010999,2]
[360927264,1747151448106,-500.0,0.00010999,2]
[360927265,1747151448116,-500.0,0.00010999,2]
[360927266,1747151448125,-500.0,0.00010999,2]
[360927267,1747151448134,-500.0,0.00010999,2]
[360927268,1747151448144,-500.0,0.00010999,2]
[360927269,1747151448153,-281.31,0.00010999,2]
[360927270,1747151448162,-150.0,0.00010999,2]
[360927271,1747151448172,-150.0,0.00010999,2]
[360927272,1747151448181,-150.0,0.00010999,2]
[360927273,1747151448190,-150.0,0.00010999,2]
[360927274,1747151448200,-150.0,0.00010999,2]
[360927275,1747151448209,-150.0,0.00010999,2]
[360927276,1747151448218,-150.0,0.00010999,2]
[360927277,1747151448227,-150.0,0.00010999,2]
[360927278,1747151448236,-150.0,0.00010999,2]
[360927279,1747151448246,-150.0,0.00010999,2]
[360927280,1747151448255,-150.0,0.00010999,2]
[360927281,1747151448264,-150.0,0.00010999,2]
[360927282,1747151448273,-150.0,0.00010999,2]
[360927283,1747151448282,-150.0,0.00010999,2]
[360927284,1747151448291,-150.0,0.00010999,2]
[360927285,1747151448301,-150.0,0.00010999,2]
[360927286,1747151448310,-150.0,0.00010999,2]
[360927287,1747151448319,-150.0,0.00010999,2]
[360927288,1747151448328,-150.0,0.00010999,2]
[360927289,1747151448338,-150.0,0.00010999,2]
[360927290,1747151448347,-150.0,0.00010999,2]
[360927291,1747151448357,-150.0,0.00010999,2]
[360927292,1747151448366,-150.0,0.00010999,2]
[360927293,1747151448375,-150.0,0.00010999,2]
[360927294,1747151448384,-150.0,0.00010999,2]
[360927295,1747151448394,-192.26628613,0.00010999,2]
[360927296,1747151448403,-300.0,0.00010999,2]
[360927297,1747151448412,-300.0,0.00010999,2]
[360927298,1747151448421,-300.0,0.00010999,2]
[360927299,1747151448431,-300.0,0.00010999,2]
[360927300,1747151448440,-300.0,0.00010999,2]
[360927301,1747151448449,-681.0,0.00011,2]
[360927302,1747151448459,-601.20418779,0.00011,2]
[360927303,1747151448468,-161890.95252086,0.00011,2]
[360927304,1747151448477,-3805556.2603446,0.00011,2]
[360927305,1747151448486,-432.9585783,0.00011,2]
[360927306,1747151448495,-2720.89171875,0.00011,2]
[360927307,1747151448505,-195.58747443,0.00011,2]
[360927308,1747151448514,-312886.07024361,0.00011,2]
[360927309,1747151448550,-857.50000015,0.00011,2]
[360927310,1747151449095,-450.17991328,0.00010958,2]
[360927311,1747151449132,-6831.34179056,0.00010958,2]
[360927312,1747151449145,-1607.25202753,0.00010958,2]
[360927313,1747151449157,-531.05358298,0.00010958,2]
[360927314,1747151449168,-863.95,0.00010958,2]
[360927315,1747151449188,-16095.89268565,0.00010958,2]
[360927316,1747151449197,-400.0,0.00010958,2]
[360927317,1747151449207,-50161.75641708,0.00011,2]
[360927318,1747151449218,-25186.3396482,0.00011,2]
[360927319,1747151452018,-1939.86426657,0.00011,2]
[360927320,1747151452041,-253393.11358569,0.00011,2]
[360927321,1747151452160,-2038.74017192,0.00011,2]
[360927322,1747151452539,-18225.77629069,0.00011,2]
[360927323,1747151452551,-103711.53022454,0.00011,2]
[360927324,1747151452577,-418.69380868,0.00010958,2]
[360927325,1747151452586,-427.9057087,0.00011,2]
[360927326,1747151452597,-657.68648446,0.00011,2]
[360927327,1747151452619,-1894.70925431,0.00011,2]
[360927328,1747151452630,-1083.09998,0.00011,2]
[360927329,1747151452643,-3830.03684384,0.00011,2]
[360927330,1747151452660,-909.55000001,0.00011,2]
[360927331,1747151452672,-874.66755449,0.00011,2]
[360927332,1747151452683,-924.14489271,0.00011,2]
[360927333,1747151452695,-203030.54531835,0.00011,2]
[360927334,1747151452811,-8874.32900964,0.00011,2]
[360927335,1747151612637,11000.26697277,0.0002799,120]
[360927336,1747151615698,493.64473001,0.000135,5]
[360927337,1747151717959,200.0,0.00015,15]
[360927338,1747151736169,400.0,0.000135,5]
[360927339,1747151737575,8183.56319792,0.00028,120]
[360927340,1747151739143,-309.38275032,0.00010081,2]
[360927341,1747151741312,-129.54724968,0.00010081,2]
[360927922,1747151903617,-150.0,0.00010594,2]
[360927923,1747151903642,-300.0,0.00010594,2]
[360927924,1747151903679,-653.15795097,0.00010595,2]
[360927925,1747151903714,-653.15795097,0.00010595,2]
[360927926,1747151903753,-653.15795097,0.00010595,2]
[360927927,1747151903786,-653.15795097,0.00010595,2]
[360927928,1747151903825,-653.15795097,0.00010595,2]
[360927929,1747151903863,-653.15795097,0.00010595,2]
[360927930,1747151903899,-653.15795097,0.00010595,2]
[360927931,1747151903932,-653.15795097,0.00010595,2]
[360927932,1747151903967,-653.15795097,0.00010595,2]
[360927933,1747151904004,-653.15795097,0.00010595,2]
[360927934,1747151904038,-653.15795097,0.00010595,2]
[360927935,1747151904075,-653.15795097,0.00010595,2]
[360927936,1747151904115,-653.15795097,0.00010595,2]
[360927937,1747151904153,-653.15795097,0.00010595,2]
[360927938,1747151904191,-653.15795097,0.00010595,2]
[360927939,1747151904230,-653.15795097,0.00010595,2]
[360927940,1747151904268,-653.15795097,0.00010595,2]
[360927941,1747151904302,-653.15795097,0.00010595,2]
[360927942,1747151904335,-653.15795097,0.00010595,2]
[360927943,1747151904369,-653.15795097,0.00010595,2]
[360927944,1747151904403,-653.15795097,0.00010595,2]
[360927945,1747151904437,-653.15795097,0.00010595,2]
[360927946,1747151904470,-653.15795097,0.00010595,2]
[360927947,1747151904506,-653.15795097,0.00010595,2]
[360927948,1747151904543,-653.15795097,0.00010595,2]
[360927949,1747151904577,-653.15795097,0.00010595,2]
[360927950,1747151904612,-653.15795097,0.00010595,2]
[360927951,1747151904649,-653.15795097,0.00010595,2]
[360927952,1747151904684,-653.15795097,0.00010595,2]
[360927953,1747151904719,-653.15795097,0.00010595,2]
[360927954,1747151904756,-653.15795097,0.00010595,2]
[360927955,1747151904795,-653.15795097,0.00010595,2]
[360927956,1747151904831,-653.15795097,0.00010595,2]
[360927957,1747151904868,-653.15795097,0.00010595,2]
[360927958,1747151904905,-653.15795097,0.00010595,2]
[360927959,1747151904942,-653.15795097,0.00010595,2]
[360927960,1747151904977,-653.15795097,0.00010595,2]
[360927961,1747151905014,-653.15795097,0.00010595,2]
[360927962,1747151905050,-647.82604933,0.00010595,2]
[360927963,1747151905086,-647.82604933,0.00010595,2]
[360927964,1747151905122,-647.82604933,0.00010595,2]
[360927965,1747151905157,-647.82604933,0.00010595,2]
[360927966,1747151905193,-647.82604933,0.00010595,2]
[360927967,1747151905228,-647.82604933,0.00010595,2]
[360927968,1747151905266,-647.82604933,0.00010595,2]
[360927969,1747151905304,-647.82604933,0.00010595,2]
[360927970,1747151905341,-647.82604933,0.00010595,2]
[360927971,1747151905376,-647.82604933,0.00010595,2]
[360927972,1747151905413,-647.82604933,0.00010595,2]
[360927973,1747151905449,-647.82604933,0.00010595,2]
[360927974,1747151905486,-647.82604933,0.00010595,2]
[360927975,1747151905524,-647.82604933,0.00010595,2]
[360927976,1747151905560,-647.82604933,0.00010595,2]
[360927977,1747151905595,-647.82604933,0.00010595,2]
[360927978,1747151905632,-647.82604933,0.00010595,2]
[360927979,1747151905669,-647.82604933,0.00010595,2]
[360927980,1747151905707,-569.1289752,0.00010595,2]
[360927981,1747151913558,-237.36160272,0.00010052,2]
[360927982,1747151916829,-282.38670178,0.00010052,2]
[360927983,1747151918955,-225.208019,0.00010052,2]
[360927984,1747151922257,-231.62544956,0.00010052,2]
[360927985,1747151924236,-177.7386183,0.00010052,2]
[360927986,1747151929031,-206.38190142,0.00010052,2]
[360927987,1747151931110,-159.04601172,0.00010052,2]
[360927988,1747151933029,-173.15398828,0.00010052,2]
[360927989,1747151942641,-168.18210163,0.00010052,2]
[360927990,1747151944339,-158.66391009,0.00010052,2]
[360927991,1747151946151,-225.67989527,0.00010052,2]
[360927992,1747151948922,-208.9218127,0.00010052,2]
[360927993,1747151949610,858.57,8.219e-05,2]
[360927994,1747151951540,-263.39531031,0.00010052,2]
[360927995,1747151954037,-167.41426294,0.00010052,2]
[360927996,1747151957071,-360.67283918,0.00010052,2]
[360927997,1747151959753,-221.24428174,0.00010052,2]
[360927998,1747151963007,-165.92258378,0.00010052,2]
[360927999,1747151965105,-167.41426294,0.00010052,2]
[360928000,1747151967866,-160.65013584,0.00010052,2]
[360928001,1747151969359,-250.00546229,0.00010052,2]
[360928002,1747151971538,-228.77891233,0.00010052,2]
[360928003,1747151974171,-194.16816099,0.00010052,2]
[360928004,1747151978444,-166.39732855,0.00010052,2]
[360928005,1747151980720,-219.33475114,0.00010052,2]
[360928006,1747151982291,-280.66524886,0.00010052,2]
[360928007,1747151985259,-219.33475114,0.00010052,2]
[360928008,1747151988520,-210.58106277,0.00010052,2]
[360928009,1747151991106,-298.23322255,0.00010052,2]
[360928010,1747151993022,-152.01808448,0.00010052,2]
[360928011,1747151994638,-258.41018952,0.00010052,2]
[360928012,1747151997418,-291.33850345,0.00010052,2]
[360928013,1747152001518,-228.85556636,0.00010052,2]
[360928014,1747152005192,-156.62299645,0.00010052,2]
[360928015,1747152006771,-265.17721185,0.00010052,2]
[360928016,1747152009203,-235.6071019,0.00010052,2]
[360928017,1747152013605,-182.51621689,0.00010052,2]
[360928018,1747152017858,-245.68035737,0.00010052,2]
[360928019,1747152021117,-185.54054918,0.00010052,2]
[360928020,1747152022663,-230.41762075,0.00010052,2]
[360928021,1747152025343,-45.57301198,0.00010052,2]
[360928022,1747152143820,200.0,0.0002,30]
[360928023,1747152144308,200.0,0.0002,30]
[360928024,1747152145033,200.0,0.0002,30]
[360928025,1747152145554,200.0,0.0002,30]
[360928026,1747152145711,-177.80679494,0.00010052,2]
[360928027,1747152145735,-12.49686224,0.00010052,2]
[360928028,1747152146019,200.0,0.0002,30]
[360928029,1747152146521,200.0,0.0002,30]
[360928030,1747152147069,200.0,0.0002,30]
[360928031,1747152147529,200.0,0.0002,30]
[360928032,1747152148059,200.0,0.0002,30]
[360928033,1747152148441,200.0,0.0002,30]
[360928034,1747152148908,-259.69634282,0.00010052,2]
[360928035,1747152149029,200.0,0.0002,30]
[360928036,1747152149389,200.0,0.0002,30]
[360928037,1747152150173,200.0,0.0002,30]
[360928038,1747152150623,167.0,0.0002,30]
[360928039,1747152155282,-210.80957351,0.00010052,2]
[360928040,1747152157745,-279.46798221,0.00010052,2]
[360928041,1747152161788,-348.10594429,0.00010052,2]
[360928042,1747152165596,-176.87046763,0.00010003,2]
[360928043,1747152167961,-91.94953237,0.00010003,2]
[360928044,1747152168013,-139.3446032,0.00010052,2]
[360928045,1747152172597,-186.6274923,0.00010052,2]
[360928046,1747152174796,-435.56463507,0.00010052,2]
[360928047,1747152177815,-221.2922797,0.00010052,2]
[360928048,1747152178882,-370.47961566,0.00010052,2]
[360928049,1747152184228,-9.65259513,0.00010052,2]
[360928050,1747152242909,-230.52684759,0.0001,2]
[360928051,1747152245422,500.0,0.000135,5]
[360928052,1747152246168,-197.04853282,0.0001,2]
[360928053,1747152248928,-192.2924088,0.0001,2]
[360928054,1747152252566,-301.06743966,0.0001,2]
[360928055,1747152255787,-79.06477113,0.0001,2]
[360928056,1747152270743,150.0,0.00023805,120]
[360928057,1747152320968,-301.06743966,9.986e-05,2]
[360928058,1747152323697,-198.93256034,9.986e-05,2]
[360928059,1747152325850,-301.06743966,9.986e-05,2]
[360928060,1747152329217,-198.93256034,9.986e-05,2]
[360928061,1747152331980,-500.0,0.00010052,2]
[360928062,1747152335564,-169.41137241,0.00010052,2]
[360928063,1747152339162,-330.58862759,0.00010052,2]
[360928064,1747152341975,-277.00028035,0.00010052,2]
[360928065,1747152345390,-222.99971965,0.00010052,2]
[360928066,1747152349991,-251.95857361,0.00010052,2]
[360928067,1747152352595,-223.8513814,0.00010052,2]
[360928068,1747152354806,-159.76,0.00010052,2]
[360928069,1747152358391,-212.89363672,0.00010052,2]
[360928070,1747152361585,-147.56104282,0.00010052,2]
[360928071,1747152361610,-3.97536545,0.00010052,2]
[360928072,1747152366809,-175.4478549,0.00010052,2]
[360928073,1747152366833,-88.26970447,0.00010052,2]
[360928074,1747152368949,-236.28244063,0.00010052,2]
[360928075,1747152370437,-233.27441895,0.00010052,2]
[360928076,1747152373548,-216.23481153,0.00010052,2]
[360928077,1747152376511,-245.46518847,0.00010052,2]
[360928078,1747152382510,-161.7,9.991e-05,2]
[360928079,1747152386474,-252.86038133,9.991e-05,2]
[360928080,1747152391273,-192.73622149,9.991e-05,2]
[360928081,1747152392797,-142.94339718,9.991e-05,2]
[360928082,1747152392820,-127.85136881,0.00010052,2]
[360928083,1747152394841,-35.26064969,0.00010052,2]
[360928084,1747152394867,-150.76857132,0.00010052,2]
[360928085,1747152398453,-173.45,0.00010052,2]
[360928086,1747152402110,-176.93752118,0.00010052,2]
[360928087,1747152406617,-192.78849182,0.00010052,2]
[360928088,1747152409925,-309.49940545,0.00010052,2]
[360928089,1747152411278,-428.48285673,0.00010052,2]
[360928090,1747152416163,-243.39844704,0.00010052,2]
[360928091,1747152419577,-266.41268796,0.00010052,2]
[360928092,1747152425229,-161.7,0.00010052,2]
[360928093,1747152427907,-72.99108954,0.00010052,2]
[360928094,1747152427937,-151.0,0.00010052,2]
[360928095,1747152430286,-209.3076481,0.00010052,2]
[360928096,1747152437988,-333.85787659,0.00010052,2]
[360928097,1747152438589,-1435.40635808,0.00010052,2]
[360928098,1747152438616,-151.0,0.00010052,2]
[360928099,1747152439720,151.0,0.00010052,2]
[360928100,1747152439755,182.85787659,0.00010052,2]
[360928103,1747152441057,-232.84338577,0.00010052,2]
[360928123,1747152444376,-1383.00044925,0.00010052,2]
[360928124,1747152444401,-151.0,0.00010052,2]
[360928125,1747152448393,-151.0,0.00010052,2]
[360928126,1747152448420,-37.78180977,0.00010052,2]
[360928127,1747152450526,150.0,0.00021421,120]
[360928128,1747152451702,-179.91615358,0.00010052,2]
[360928129,1747152454850,-280.95138035,0.00010052,2]
[360928130,1747152456750,-207.71292155,0.00010052,2]
[360928131,1747152458681,-928.82110894,0.00010052,2]
[360928132,1747152458705,-151.0,0.00010052,2]
[360928133,1747152459618,151.0,0.00010052,2]
[360928134,1747152459661,56.71292155,0.00010052,2]
[360928135,1747152461201,-161.7,0.00010052,2]
[360928136,1747152463895,-1268.11741862,0.00010052,2]
[360928137,1747152463923,-151.0,0.00010052,2]
[360928138,1747152470654,-151.16,9.993e-05,2]
[360928139,1747152475926,-151.16,0.00010003,2]
[360928140,1747152475955,-151.16,0.00010013,2]
[360928141,1747152475980,-151.16,0.00010023,2]
[360928142,1747152476008,-151.16,0.00010033,2]
[360928143,1747152476034,-151.16,0.00010043,2]
[360928144,1747152476058,-151.0,0.00010052,2]
[360928145,1747152476083,-595.59121834,0.00010052,2]
[360928146,1747152483613,-755.8,0.00010052,2]
[360928147,1747152483638,-272.12018503,0.00010052,2]
[360928148,1747152484394,1228.53747122,0.00010052,2]
[360928149,1747152485216,1116.85224656,0.00010052,2]
[360928150,1747152486679,1015.32022414,0.00010052,2]
[360928151,1747152487609,923.01838559,0.00010052,2]
[360928152,1747152488402,839.10762326,0.00010052,2]
[360928153,1747152489192,762.82511205,0.00010052,2]
[360928154,1747152490109,693.4773746,0.00010052,2]
[360928155,1747152490888,630.4339769,0.00010052,2]
[360928156,1747152491465,573.12179719,0.00010052,2]
[360928157,1747152492132,521.01981562,0.00010052,2]
[360928158,1747152492860,473.65437784,0.00010052,2]
[360928159,1747152494322,194.71141,0.00010052,2]
[360928160,1747152494348,235.88347895,0.00010052,2]
[360928161,1747152495204,391.44989904,0.00010052,2]
[360928162,1747152495968,355.86354458,0.00010052,2]
[360928163,1747152496585,323.51231326,0.00010052,2]
[360928164,1747152497165,294.10210296,0.00010052,2]
[360928165,1747152497926,267.36554815,0.00010052,2]
[360928166,1747152499387,243.05958922,0.00010052,2]
[360928167,1747152500000,220.96326293,0.00010052,2]
[360928168,1747152500584,200.87569357,0.00010052,2]
[360928169,1747152501330,182.61426688,0.00010052,2]
[360928170,1747152502232,166.0129699,0.00010052,2]
[360928171,1747152502873,151.0,0.00010052,2]
[360928172,1747152503533,151.0,0.00010052,2]
[360928173,1747152504876,151.0,0.00010052,2]
[360928174,1747152505610,151.0,0.00010052,2]
[360928175,1747152506181,151.0,0.00010052,2]
[360928176,1747152507040,151.0,0.00010052,2]
[360928177,1747152507700,151.0,0.00010052,2]
[360928178,1747152508755,151.0,0.00010052,2]
[360928179,1747152509326,151.0,0.00010052,2]
[360928180,1747152510210,301.12969901,0.00010052,2]
[360928181,1747152567262,-858.57,0.00010477,2]
[360928182,1747152567289,-250.0,0.00010535,2]
[360928183,1747152567316,-300.0,0.00010588,2]
[360928184,1747152567343,-150.0,0.00010588,2]
[360928185,1747152580385,-368.69796335,0.00010589,2]
[360928186,1747152580411,-360.97363367,0.00010589,2]
[360928187,1747152580446,-500.0,0.00010589,2]
[360928188,1747152580470,-500.0,0.00010589,2]
[360928189,1747152580504,-500.0,0.00010589,2]
[360928190,1747152580539,-500.0,0.00010589,2]
[360928191,1747152580572,-500.0,0.00010589,2]
[360928192,1747152580605,-500.0,0.00010589,2]
[360928193,1747152580640,-500.0,0.00010589,2]
[360928194,1747152580676,-500.0,0.00010589,2]
[360928195,1747152580728,-500.0,0.00010589,2]
[360928196,1747152580787,-500.0,0.00010589,2]
[360928197,1747152580839,-500.0,0.00010589,2]
[360928198,1747152580897,-500.0,0.00010589,2]
[360928199,1747152580953,-500.0,0.00010589,2]
[360928200,1747152581010,-500.0,0.00010589,2]
[360928201,1747152581066,-500.0,0.00010589,2]
[360928202,1747152581127,-500.0,0.00010589,2]
[360928203,1747152581183,-500.0,0.00010589,2]
[360928204,1747152581242,-500.0,0.00010589,2]
[360928205,1747152581297,-500.0,0.00010589,2]
[360928206,1747152581355,-500.0,0.00010589,2]
[360928207,1747152581413,-500.0,0.00010589,2]
[360928208,1747152581472,-500.0,0.00010589,2]
[360928209,1747152581527,-500.0,0.00010589,2]
[360928210,1747152581585,-500.0,0.00010589,2]
[360928211,1747152581641,-500.0,0.00010589,2]
[360928212,1747152581704,-500.0,0.00010589,2]
[360928213,1747152581761,-500.0,0.00010589,2]
[360928214,1747152581817,-500.0,0.00010589,2]
[360928215,1747152581874,-500.0,0.00010589,2]
[360928216,1747152581930,-500.0,0.00010589,2]
[360928217,1747152581998,-500.0,0.00010589,2]
[360928218,1747152582056,-500.0,0.00010589,2]
[360928219,1747152582118,-500.0,0.00010589,2]
[360928220,1747152582188,-500.0,0.00010589,2]
[360928221,1747152582253,-500.0,0.00010589,2]
[360928222,1747152582312,-500.0,0.00010589,2]
[360928223,1747152582373,-500.0,0.00010589,2]
[360928224,1747152582433,-500.0,0.00010589,2]
[360928225,1747152582501,-500.0,0.00010589,2]
[360928226,1747152582561,-500.0,0.00010589,2]
[360928227,1747152582621,-500.0,0.00010589,2]
[360928228,1747152582679,-500.0,0.00010589,2]
[360928229,1747152582735,-500.0,0.00010589,2]
[360928230,1747152582792,-500.0,0.00010589,2]
[360928231,1747152582846,-500.0,0.00010589,2]
[360928232,1747152582906,-500.0,0.00010589,2]
[360928233,1747152582963,-500.0,0.00010589,2]
[360928234,1747152583024,-500.0,0.00010589,2]
[360928235,1747152583083,-500.0,0.00010589,2]
[360928236,1747152583142,-500.0,0.00010589,2]
[360928237,1747152583199,-500.0,0.00010589,2]
[360928238,1747152583263,-500.0,0.00010589,2]
[360928239,1747152583328,-500.0,0.00010589,2]
[360928240,1747152583392,-441.72300091,0.00010589,2]
[360928241,1747152583461,-500.0,0.00010589,2]
[360928242,1747152583530,-500.0,0.00010589,2]
[360928243,1747152583593,-500.0,0.00010589,2]
[360928244,1747152583662,-500.0,0.00010589,2]
[360928245,1747152583719,-500.0,0.00010589,2]
[360928246,1747152583778,-500.0,0.00010589,2]
[360928247,1747152583830,-500.0,0.00010589,2]
[360928248,1747152584227,-500.0,0.00010589,2]
[360928249,1747152584289,-500.0,0.00010589,2]
[360928250,1747152584344,-500.0,0.00010589,2]
[360928251,1747152584404,-500.0,0.00010589,2]
[360928252,1747152584463,-270.03540207,0.00010589,2]
[360928253,1747152603881,-250.12694645,9.984e-05,2]
[360928254,1747152605500,-359.16790501,9.984e-05,2]
[360928255,1747152607163,-1527.54514854,9.984e-05,2]
[360928260,1747152630486,150.0,0.00025709,120]
[360928263,1747152631682,-166.58,0.00010293,2]
[360928264,1747152631695,-250.0,0.00010441,2]
[360928265,1747152631704,-1200.0,0.00010588,2]
[360928266,1747152631714,-300.0,0.00010588,2]
[360928267,1747152631724,-229.96459793,0.00010589,2]
[360928268,1747152631733,-500.0,0.00010589,2]
[360928269,1747152631743,-500.0,0.00010589,2]
[360928270,1747152631753,-500.0,0.00010589,2]
[360928271,1747152631763,-500.0,0.00010589,2]
[360928272,1747152631773,-500.0,0.00010589,2]
[360928273,1747152631782,-500.0,0.00010589,2]
[360928274,1747152631791,-59.22611011,0.00010589,2]
[360928275,1747152631803,-440.77388989,0.00010589,2]
[360928276,1747152631813,-572.08615005,0.00010589,2]
[360928277,1747152631822,-500.0,0.00010589,2]
[360928278,1747152631833,-500.0,0.00010589,2]
[360928279,1747152631842,-500.0,0.00010589,2]
[360928280,1747152631851,-500.0,0.00010589,2]
[360928281,1747152631860,-500.0,0.00010589,2]
[360928282,1747152631869,-500.0,0.00010589,2]
[360928283,1747152631879,-500.0,0.00010589,2]
[360928284,1747152631894,-300.0,0.00010589,2]
[360928285,1747152631905,-500.0,0.00010589,2]
[360928286,1747152631915,-500.0,0.00010589,2]
[360928287,1747152631924,-500.0,0.00010589,2]
[360928288,1747152631934,-500.0,0.00010589,2]
[360928289,1747152631946,-500.0,0.00010589,2]
[360928290,1747152631955,-1315.8236609,0.00010589,2]
[360928291,1747152631967,-1315.8236609,0.00010589,2]
[360928292,1747152631977,-1315.8236609,0.00010589,2]
[360928293,1747152631987,-1315.8236609,0.00010589,2]
[360928294,1747152631996,-1315.8236609,0.00010589,2]
[360928295,1747152632005,-1315.8236609,0.00010589,2]
[360928297,1747152632015,-1315.8236609,0.00010589,2]
[360928298,1747152632025,-1315.8236609,0.00010589,2]
[360928300,1747152632034,-1315.8236609,0.00010589,2]
[360928302,1747152632044,-1315.8236609,0.00010589,2]
[360928304,1747152632054,-39602.19,0.00010773,2]
[360928306,1747152632064,-1000.0,0.000108,2]
[360928308,1747152632073,-207.4,0.00010852,2]
[360928310,1747152632083,-190.81900731,0.00010857,2]
[360928312,1747152632093,-198.90353392,0.00010857,2]
[360928314,1747152632102,-198.81733046,0.00010857,2]
[360928316,1747152632112,-603.54089292,0.00010858,2]
[360928318,1747152632121,-9914.18944875,0.00010858,2]
[360928372,1747152632618,-54221.77658413,0.00010858,2]
[360928374,1747152632630,-497.17925657,0.00010858,2]
[360928377,1747152632643,-3902.90081055,0.00010858,2]
[360928378,1747152632652,-6088.2255,0.00010858,2]
[360928380,1747152632661,-168.15946945,0.00010858,2]
[360928383,1747152632680,-831.84053055,0.00010858,2]
[360928385,1747152632690,-1000.0,0.00010858,2]
[360928387,1747152632700,-5799.3002,0.00010873,2]
[360928389,1747152632709,-14905.88710695,0.00010873,2]
[360928393,1747152632735,-265.87499305,0.00010873,2]
[360928395,1747152632744,-390.10241766,0.00010873,2]
[360928397,1747152632756,-2146.60268234,0.00010873,2]
[360928399,1747152632765,-1566.73881146,0.00010873,2]
[360928402,1747152632776,-449.32685517,0.00010873,2]
[360928624,1747152637848,-1315.82366091,0.00010589,2]
[360928625,1747152637857,-1315.82366091,0.00010589,2]
[360928626,1747152637867,-1315.82366091,0.00010589,2]
[360928627,1747152637876,-1315.82366091,0.00010589,2]
[360928628,1747152637886,-1315.82366091,0.00010589,2]
[360928629,1747152637895,-1315.82366091,0.00010589,2]
[360928630,1747152637904,-1315.82366091,0.00010589,2]
[360928631,1747152637913,-1315.82366091,0.00010589,2]
[360928632,1747152637922,-1315.82366091,0.00010589,2]
[360928633,1747152637932,-7252.99693337,0.00010873,2]
[360928634,1747152637941,-166.55221696,0.00010898,2]
[360928635,1747152637952,-4391.7752,0.000109,2]
[360928636,1747152637963,-310.51076607,0.000109,2]
[360928637,1747152637976,-299.99,0.000109,2]
[360928638,1747152637987,-150.99,0.000109,2]
[360928639,1747152637997,-9999.99,0.000109,2]
[360928641,1747152638007,-150.99,0.000109,2]
[360928643,1747152638016,-606.9859155,0.000109,2]
[360928645,1747152638026,-178.97793979,0.000109,2]
[360928646,1747152638035,-694.96,0.00010944,2]